Cogmind - Beta 13 @@@ ROGUE MODE // 2024.04.15 @ 22:11:34 Player: double j Result: Destroyed by S-27 Virus with Autogun Performance ------------- Evolutions (3) 1500 Regions Visited (8) 1600 Robots Destroyed (31) 155 Value Destroyed (958) 958 Prototype IDs (1) 20 Alien Tech Used (0) 0 Bonus (119) 119 TOTAL SCORE: 4352 Bonus ------- Follower Combat Kills 139 Friendly Fire -20 Cogmind --------- Core Integrity 0/700 Matter 232/300 Energy 100/100 System Corruption 13% Temperature Cool (9) Movement Core (100) Ox1 Location -7/Factory Parts ------- > --- POWER (1) -------- (None) > --- PROPULSION (4) --- (None) > --- UTILITY (6) ------ Trap Scanner Advanced ECM Suite > --- WEAPON (2) ------- (None) > --- INVENTORY (5) ---- Nuclear Core Xenon Bombardment Thruster Improved Cooling System Datajack Peak State ------------ > --- POWER ------------ Antimatter Reactor > --- PROPULSION ------- Light Treads Light Treads Advanced Treads Advanced Treads > --- UTILITY ---------- Small Storage Unit Advanced Terrain Scan Processor Hardlight Generator > --- WEAPON ----------- Mini Assault Cannon Power Maul > --- INVENTORY -------- Heat Sink [Rating: 32] Favorites ----------- Power Ion Engine Engine Ion Engine Power Core Light Nuclear Core Reactor Antimatter Reactor Propulsion Aluminum Leg Treads Advanced Treads Leg Aluminum Leg Wheel Armored Huge Wheel Flight Unit Xenon Bombardment Thruster Utility Small Storage Unit Device Sensor Array Storage Small Storage Unit Processor Advanced Terrain Scan Processor Hackware System Shield Weapon Rocket Launcher Energy Gun Medium Laser Energy Cannon Improved EM Pulse Cannon Ballistic Cannon Mini Assault Cannon Launcher Rocket Launcher Impact Weapon Power Maul Build | -11 -10 -10 -10 -9 -8 -7 -7 -7 ------- Run | Yrd Mat Min Exi Min Mat Fac Was Fac Slots Evolved 6 | . . . . . 4 2 . . Power . | . . . . . . . . . Propulsion 2 | . . . . . 2 . . . Utility 4 | . . . . . 2 2 . . Weapon . | . . . . . . . . . Parts Attached 50 | 2 5 3 . . 20 10 3 7 Power 7 | . 1 . . . 2 1 2 1 Engine 2 | . 1 . . . 1 . . . Core 2 | . . . . . 1 1 . . Reactor 3 | . . . . . . . 2 1 Propulsion 19 | . 2 1 . . 10 5 . 1 Treads 4 | . . . . . . 4 . . Leg 9 | . 2 1 . . 6 . . . Wheel 1 | . . . . . . . . 1 Hover . | . . . . . . . . . Flight 5 | . . . . . 4 1 . . Utility 15 | 1 1 . . . 7 2 1 3 Device 10 | . 1 . . . 3 2 1 3 Storage 2 | 1 . . . . 1 . . . Processor 2 | . . . . . 2 . . . Hackware 1 | . . . . . 1 . . . Protection . | . . . . . . . . . Artifact . | . . . . . . . . . Weapon 9 | 1 1 2 . . 1 2 . 2 Energy Gun 2 | 1 . . . . . . . 1 Energy Cannon 1 | . . . . . . . . 1 Ballistic Gun . | . . . . . . . . . Ballistic Cannon 1 | . . . . . . 1 . . Launcher 4 | . 1 2 . . 1 . . . Special Weapon . | . . . . . . . . . Impact Weapon 1 | . . . . . . 1 . . Slashing Weapon . | . . . . . . . . . Piercing Weapon . | . . . . . . . . . Special Melee Weapon . | . . . . . . . . . Unidentified Prototypes 1 | . . . . . . 1 . . Parts Lost 27 | . . . . . 13 6 5 3 Power 5 | . . . . . 3 1 . 1 Propulsion 10 | . . . . . 7 1 1 1 Utility 6 | . . . . . . 4 2 . Weapon 6 | . . . . . 3 . 2 1 Highest Loss Streak 6 | . . . . . 6 3 5 3 To Critical Strikes . | . . . . . . . . . Average Slot Usage (%) 85 | . 84 99 100 100 85 50 49 20 Engine 10 | . 14 14 14 14 5 . . . Treads 1 | . . . . . . 8 19 . Leg 21 | . 28 28 28 28 23 . . . Flight 1 | . . . . . 5 3 . . Device 11 | . 10 14 14 14 9 5 3 4 Storage 11 | . 14 14 14 14 8 7 4 . Processor 1 | . . . . . 7 7 4 . Hackware 1 | . . . . . 8 4 . . Energy Gun 2 | . 14 5 . . 3 . . 1 Launcher 18 | . 2 22 28 28 10 . . . Naked Turns 94 | . . . . . . . 37 57 Heaviest Build 33 | 7 16 21 21 21 22 15 33 28 Greatest Support 84 | 3 20 20 20 20 72 84 84 28 Greatest Overweight (x) 4 | 2 . 1 1 1 3 4 2 1 Average Overweight (x) . | 1 . . 1 1 . . . . Largest Inventory Capacity 8 | 8 8 8 8 8 8 8 8 5 Average Capacity 7 | 7 8 8 8 8 7 8 7 5 Most Carried 8 | 5 4 8 7 7 8 5 3 5 Average Carried 5 | 3 3 5 7 7 5 2 1 4 Final Capacity 8 | 8 8 8 8 8 8 8 5 5 Final Carried 7 | 4 3 7 7 7 4 2 2 4 Class Distribution -------------------- 96% | Mutant 3% | Assassin Dominant Class ---------------- Mutant | -10/Materials Mutant | -10/Mines Mutant | -10/Exiles Mutant | -9/Mines Mutant | -8/Materials Mutant | -7/Factory Mutant | -7/Waste Mutant | -7/Factory Resources | -11 -10 -10 -10 -9 -8 -7 -7 -7 ----------- Run | Yrd Mat Min Exi Min Mat Fac Was Fac Matter Collected 866 | 178 . 127 . 25 204 192 5 135 Remotely . | . . . . . . . . . Salvage Created 718 | . 113 . . . 305 165 . 135 Parts 45 | . 11 . . . 23 4 . 7 Haulers Intercepted . | . . . . . . . . . Recyclers Shooed 1 | . 1 . . . . . . . Parts Field Recycled . | . . . . . . . . . Retrieved Matter . | . . . . . . . . . Parts Self-Destructed . | . . . . . . . . . Prevented . | . . . . . . . . . Kills | -11 -10 -10 -10 -9 -8 -7 -7 -7 ------- Run | Yrd Mat Min Exi Min Mat Fac Was Fac Combat Hostiles Destroyed 25 | . 6 . . . 13 4 . 2 Melee 2 | . . . . . 1 1 . . Cannons 5 | . . . . . . 3 . 2 AOE 18 | . 6 . . . 12 . . . Classes Destroyed 8 | . 4 . . . 3 1 . . Builder 3 | . . . . . 3 . . . Tunneler 1 | . 1 . . . . . . . Mechanic 1 | . . . . . 1 . . . Watcher 1 | . 1 . . . . . . . Swarmer 8 | . 3 . . . 5 . . . Grunt 10 | . 3 . . . 4 2 . 1 Sentry 6 | . . . . . 4 1 . 1 Hunter 1 | . . . . . . 1 . . Best Kill Streak 10 | . 8 . . . 10 2 . 1 Combat Bots Only 8 | . 6 . . . 8 2 . 1 Max Kills in Single Turn 4 | . 4 . . . 3 1 . 1 Gunslinging . | . . . . . . . . . Exploded 3 | . 3 . . . 3 . . . Melee 1 | . . . . . 1 1 . . Uniques/NPCs Destroyed . | . . . . . . . . . Combat | -11 -10 -10 -10 -9 -8 -7 -7 -7 -------- Run | Yrd Mat Min Exi Min Mat Fac Was Fac Hostile Shots Fired 379 | . 20 1 . . 180 93 4 81 Missed 131 | . 10 . . . 69 28 . 24 Damage Taken 3573 | . 130 9 . 10 1632 936 174 682 Core 1046 | . . 9 . . 337 321 144 235 Absorbed by Shields 4 | . . . . . . . 4 . Regen/Repaired (Parts) 99 | . . . . . 99 . . . Core Remaining (%) 78 | 100 . . . 96 38 . . . Volleys Fired 47 | . 6 . . . 20 14 3 4 Largest 2 | . 1 . . . 2 1 1 1 Hottest 69 | . 50 . . . 66 48 48 69 Shots Fired 52 | . 6 . . . 25 14 3 4 Gun 8 | . 3 . . . 5 . . . Cannon 21 | . . . . . . 14 3 4 Launcher 23 | . 3 . . . 20 . . . Special . | . . . . . . . . . Kinetic 17 | . . . . . . 14 3 . Thermal 8 | . 3 . . . 5 . . . Explosive 19 | . 3 . . . 16 . . . Electromagnetic 8 | . . . . . 4 . . 4 Robot Hit Streak 10 | . 3 . . . 10 5 2 6 Robot Miss Streak 2 | . 1 . . . 2 1 1 . Penetration Max . | . . . . . . . . . Secondary Targets . | . . . . . . . . . Shots Hit Robots 42 | . 4 . . . 18 14 2 4 Core Hits 44 | . 9 . . . 25 6 . 4 Critical Kills 1 | . . . . . . 1 . . Critical Parts Destroyed 1 | . . . . . . 1 . . Critical Strikes 4 | . . . . . . 4 . . Blast 2 | . . . . . . 2 . . Smash 2 | . . . . . . 2 . . Melee Attacks 4 | . . . . . . 4 . . Impact 4 | . . . . . . 4 . . Slashing . | . . . . . . . . . Piercing . | . . . . . . . . . Sneak Attacks . | . . . . . . . . . Combat Hostiles . | . . . . . . . . . Follow-up Attacks . | . . . . . . . . . Damage Inflicted 2592 | . 489 . . . 1472 420 82 129 Guns 40 | . 12 . . . 28 . . . Cannons 506 | . . . . . . 316 82 108 Explosions 1900 | . 477 . . . 1423 . . . Melee 104 | . . . . . . 104 . . Ramming 42 | . . . . . 21 . . 21 Kinetic 398 | . . . . . . 316 82 . Thermal 40 | . 12 . . . 28 . . . Explosive 1818 | . 477 . . . 1341 . . . Electromagnetic 190 | . . . . . 82 . . 108 Impact 104 | . . . . . . 104 . . Slashing . | . . . . . . . . . Piercing . | . . . . . . . . . Highest Corruption 13 | . . . . . . . 12 13 Average Corruption 11 | . . . . . . . 7 12 Corruption Purged . | . . . . . . . . . Corruption Blocked . | . . . . . . . . . Effects 20 | . . . . . . . 4 16 Message Errors 3 | . . . . . . . 1 2 Matter Fused 3 | . . . . . . . . 3 Heat Flow Errors 2 | . . . . . . . . 2 Energy Discharges 2 | . . . . . . . . 2 Data Loss (minor) 4 | . . . . . . . 1 3 Data Loss (major) 2 | . . . . . . . 1 1 Alerts 2 | . . . . . . . 1 1 Misdirections 2 | . . . . . . . . 2 Overload Shots . | . . . . . . . . . Overflow Damage 184 | . 15 . . . 108 61 . . Projectiles 14 | . . . . . . 14 . . Explosions 123 | . 15 . . . 108 . . . Melee 47 | . . . . . . 47 . . Knockbacks 4 | . . . . . . 3 . 1 Impact 1 | . . . . . . . . 1 Kinetic 3 | . . . . . . 3 . . Secondary . | . . . . . . . . . Self-Inflicted Damage 186 | . 19 . . . 158 . . 9 Shots 6 | . 2 . . . 4 . . . Rammed 5 | . . . . . . . . 5 Targets Rammed 13 | . . . . . 8 . . 5 Kicked 8 | . . . . . 8 . . . Crushed . | . . . . . . . . . Highest Temperature 347 | . 30 . . . 14 9 . 347 Average Temperature 114 | . 13 . . . 5 5 . 200 Received Heat Transfer 1227 | . 54 . . 6 603 387 . 177 Effects 1 | . . . . . . . . 1 Energy Bleed 1 | . . . . . . . . 1 Siege Activations . | . . . . . . . . . Robots Corrupted . | . . . . . . . . . Combat Hostiles . | . . . . . . . . . Parts Fried 1 | . . . . . . . . 1 Impact Corruptions 1 | . . . . . . 1 . . Robots Melted . | . . . . . . . . . Combat Hostiles . | . . . . . . . . . Parts Melted . | . . . . . . . . . Heat Transferred 148 | . 37 . . . 111 . . . Parts Sabotaged . | . . . . . . . . . Parts Stolen . | . . . . . . . . . Parts Stripped . | . . . . . . . . . Power Chain Reactions . | . . . . . . . . . Alert | -11 -10 -10 -10 -9 -8 -7 -7 -7 ------- Run | Yrd Mat Min Exi Min Mat Fac Was Fac Peak Influence 416 | . 203 96 . 73 416 165 30 124 Initial 140 | . . 78 . . . 140 30 . Average 63 | . 23 44 . 23 162 117 17 32 Maximum Alert Level 2 | . 1 . . . 2 . . . Low Security (%) 92 | 100 96 100 . 100 51 100 100 100 Level 1 7 | . 3 . . . 47 . . . Level 2 . | . . . . . 1 . . . Level 3 . | . . . . . . . . . Level 4 . | . . . . . . . . . Level 5 . | . . . . . . . . . High Security . | . . . . . . . . . Max Security . | . . . . . . . . . Squads Dispatched 9 | . . 1 . . 6 1 . 1 Investigation 4 | . . 1 . . 1 1 . 1 Extermination . | . . . . . . . . . Reinforcement 4 | . . . . . 4 . . . Assault . | . . . . . . . . . Garrison 1 | . . . . . 1 . . . Intercept . | . . . . . . . . . Searches Triggered . | . . . . . . . . . Construction Impeded 2 | . . . . . 2 . . . Haulers Reinforced . | . . . . . . . . . Active Scanning Responses . | . . . . . . . . . Cargo Convoy Interrupts . | . . . . . . . . . Stealth | -11 -10 -10 -10 -9 -8 -7 -7 -7 --------- Run | Yrd Mat Min Exi Min Mat Fac Was Fac Distress Signals 1 | . 1 . . . . . . . Communications Jammed . | . . . . . . . . . Distress Signals . | . . . . . . . . . Times Spotted 65 | . 12 3 . 2 31 4 4 9 Peak Tracking Total 10 | . 10 3 . 2 7 2 4 7 Tactical Retreats 5 | . . 1 . . 4 . . . Traps | -11 -10 -10 -10 -9 -8 -7 -7 -7 ------- Run | Yrd Mat Min Exi Min Mat Fac Was Fac Traps Triggered 5 | . . . . . 2 3 . . Indirectly . | . . . . . . . . . Trap Hack Attempts . | . . . . . . . . . Triggered . | . . . . . . . . . Disarmed . | . . . . . . . . . Reprogrammed . | . . . . . . . . . Reused . | . . . . . . . . . Traps Extracted . | . . . . . . . . . Installed . | . . . . . . . . . Triggered . | . . . . . . . . . Machines | -11 -10 -10 -10 -9 -8 -7 -7 -7 ---------- Run | Yrd Mat Min Exi Min Mat Fac Was Fac Machines Disabled 4 | . . . . . 4 . . . Max in Single Turn 2 | . . . . . 2 . . . Machines Repaired . | . . . . . . . . . Machines Dismantled . | . . . . . . . . . Machines Sabotaged . | . . . . . . . . . Overloaded Fab Kills . | . . . . . . . . . Hacking | -11 -10 -10 -10 -9 -8 -7 -7 -7 --------- Run | Yrd Mat Min Exi Min Mat Fac Was Fac Machines Accessed 19 | . 1 1 4 . 6 1 . 6 Terminals 9 | . 1 . . . 4 1 . 3 Fabricators 1 | . . . . . . . . 1 Repair Stations 1 | . . . . . 1 . . . Recycling Units . | . . . . . . . . . Scanalyzers 2 | . . . . . 1 . . 1 Garrison Access 1 | . . . . . . . . 1 Total Hacks 44 | . 2 1 4 . 25 3 . 9 Successful 27 | . 1 1 4 . 16 1 . 4 Failed 17 | . 1 . . . 9 2 . 5 Catastrophic 3 | . . . . . 2 . . 1 Database Lockouts . | . . . . . . . . . Manual . | . . . . . . . . . Terminals 28 | . 2 . . . 19 3 . 4 Fabricators 3 | . . . . . . . . 3 Repair Stations 4 | . . . . . 4 . . . Recycling Units . | . . . . . . . . . Scanalyzers 3 | . . . . . 2 . . 1 Garrison Access 1 | . . . . . . . . 1 Terminal Hacks 19 | . 1 1 4 . 11 1 . 1 Record 10 | . . . 4 . 4 1 . 1 Robot Analysis 1 | . . . . . 1 . . . Open Door 1 | . . 1 . . . . . . Emergency Access Points 1 | . . . . . 1 . . . Unreport Threat 1 | . . . . . 1 . . . Locate Traps 1 | . 1 . . . . . . . Dispatch Records 2 | . . . . . 2 . . . Hauler Manifests 1 | . . . . . 1 . . . Zone Layout 1 | . . . . . 1 . . . Fabricator Hacks 2 | . . . . . . . . 2 Network Status 1 | . . . . . . . . 1 Build 1 | . . . . . . . . 1 Repair Station Hacks 3 | . . . . . 3 . . . Scan Component 1 | . . . . . 1 . . . Repair 1 | . . . . . 1 . . . Refit 1 | . . . . . 1 . . . Recycling Unit Hacks . | . . . . . . . . . Scanalyzer 2 | . . . . . 2 . . . Insert Component 1 | . . . . . 1 . . . Analyze 1 | . . . . . 1 . . . Garrison Access Hacks 1 | . . . . . . . . 1 Unlock Access 1 | . . . . . . . . 1 Unauthorized Hacks . | . . . . . . . . . Terminals . | . . . . . . . . . Fabricators . | . . . . . . . . . Repair Stations . | . . . . . . . . . Recycling Units . | . . . . . . . . . Scanalyzers . | . . . . . . . . . Garrison Access . | . . . . . . . . . Data Cores Recovered . | . . . . . . . . . Used . | . . . . . . . . . Hacking Detections 11 | . 1 . . . 4 1 . 5 Full Trace Events 2 | . . . . . 1 . . 1 Feedback Events . | . . . . . . . . . Feedback Blocked . | . . . . . . . . . Robot Schematics Acquired . | . . . . . . . . . Robots Built . | . . . . . . . . . Authchips . | . . . . . . . . . Time . | . . . . . . . . . Total Robot Build Rating . | . . . . . . . . . Part Schematics Acquired 1 | . . . . . 1 . . . Parts Built 1 | . . . . . . . . 1 Authchips . | . . . . . . . . . Time 95 | . . . . . . . . 95 Total Part Build Rating 5 | . . . . . . . . 5 Parts Repaired 1 | . . . . . 1 . . . Time 26 | . . . . . 26 . . . Parts Recycled . | . . . . . . . . . Recycled Matter . | . . . . . . . . . Retrieved Matter . | . . . . . . . . . Retrieved Components . | . . . . . . . . . Parts Scanalyzed 1 | . . . . . 1 . . . Part Schematics Acquired 1 | . . . . . 1 . . . Parts Damaged . | . . . . . . . . . Bothacking | -11 -10 -10 -10 -9 -8 -7 -7 -7 ------------ Run | Yrd Mat Min Exi Min Mat Fac Was Fac Used RIF Installer . | . . . . . . . . . Robots Hacked . | . . . . . . . . . Non-combat . | . . . . . . . . . Combat . | . . . . . . . . . Robot Hacks Applied . | . . . . . . . . . Relay Couplers Released . | . . . . . . . . . Fabnet Peak Effective % . | . . . . . . . . . Robots Rewired . | . . . . . . . . . Allies Hacked . | . . . . . . . . . Hacks Repelled . | . . . . . . . . . Allies | -11 -10 -10 -10 -9 -8 -7 -7 -7 -------- Run | Yrd Mat Min Exi Min Mat Fac Was Fac Total Allies 4 | . . 3 . . . . 1 . Largest Group 3 | . . 3 3 3 3 . 1 . Highest-Rated Group 40 | . . 40 40 37 35 . 31 . Highest-Rated Ally 31 | . . 16 16 16 16 . 31 . Total Orders . | . . . . . . . . . Ally Attacks 56 | . . 23 . 17 8 . 8 . Total Damage 571 | . . 191 . 186 51 . 143 . Kills 7 | . . 4 . 2 1 . . . Allies Corrupted . | . . . . . . . . . Allies Melted . | . . . . . . . . . Intel | -11 -10 -10 -10 -9 -8 -7 -7 -7 ------- Run | Yrd Mat Min Exi Min Mat Fac Was Fac Robot Analysis Total 1 | . . . . . 1 . . . Derelict Logs Recovered 1 | . . 1 . . . . . . Drone Launches . | . . . . . . . . . Drone Recoveries . | . . . . . . . . . Exploration | -11 -10 -10 -10 -9 -8 -7 -7 -7 ------------- Run | Yrd Mat Min Exi Min Mat Fac Was Fac Turns Passed 6029 | 52 244 1290 1308 1225 739 615 132 424 Spaces Moved 3690 | 36 163 816 689 635 451 344 127 429 Core 281 | 36 . . . . 24 39 74 108 Treads 200 | . . . . . . 147 53 . Legs 2730 | . 163 816 689 635 427 . . . Wheels 321 | . . . . . . . . 321 Hover . | . . . . . . . . . Flight 158 | . . . . . . 158 . . Fastest Speed 50 | 50 120 120 190 190 100 100 50 50 Average Speed 151 | 120 120 152 190 190 133 145 93 87 Slowest Speed 250 | 150 120 190 190 190 200 250 225 100 Overloaded Moves . | . . . . . . . . . Propulsion Burnouts . | . . . . . . . . . Robots Hopped . | . . . . . . . . . Cave-ins Triggered . | . . . . . . . . . Exploration Rate (%) 52 | 2 31 99 93 99 54 8 76 12 Regions Visited 8 Branch Regions 3 Pre-discovered Areas . | . . . . . . . . . Known Exits Taken . | . . . . . . . . . Unknown Exits Taken 6 | 1 1 1 1 1 1 . . . Scrap Searched 3 | . . 2 . 1 . . . . Spaces Dug . | . . . . . . . . . Terrain Destroyed 216 | . 21 . . . 194 1 . . Melee . | . . . . . . . . . Projectile 1 | . . . . . . 1 . . AOE 215 | . 21 . . . 194 . . . Terrain Rammed . | . . . . . . . . . Walls Destroyed . | . . . . . . . . . Machines Disabled . | . . . . . . . . . Actions | -11 -10 -10 -10 -9 -8 -7 -7 -7 --------- Run | Yrd Mat Min Exi Min Mat Fac Was Fac Total 4062 | 45 205 862 688 654 560 436 137 475 Wait 193 | . 28 34 . 20 37 56 2 16 Move 3683 | 35 162 815 688 634 450 344 126 429 Hop . | . . . . . . . . . Pick Up 52 | 7 4 7 . . 14 8 2 10 Fast Attach 2 | . . . . . 2 . . . Attach 46 | 2 5 2 . . 17 10 3 7 Detach 4 | . . . . . 2 . 1 1 Swap 2 | . . 1 . . 1 . . . Drop 16 | 1 . 3 . . 9 . . 3 Fire 47 | . 6 . . . 20 14 3 4 Melee 4 | . . . . . . 4 . . Ram 5 | . . . . . . . . 5 Kick 8 | . . . . . 8 . . . Crush . | . . . . . . . . . Escape Stasis . | . . . . . . . . . Rewire . | . . . . . . . . . Trap . | . . . . . . . . . Miscellaneous . | . . . . . . . . . Route ------- -11/Scrapyard -10/Materials -10/Mines (discovered 3 exits: [*Mat x2] / *Exi) -10/Exiles (discovered 2 exits: [*Min x2]) -9/Mines (discovered 2 exits: *Mat x2) -8/Materials -7/Factory -7/Waste -7/Factory (discovered 1 exit: Gar) History --------- Turn | Location | Event 24 | -11/Scrapyard | Discovered new exit (range 16) 53 | -11/Scrapyard | Entered Materials 290 | -10/Materials | Discovered new exit (range 7) 297 | -10/Materials | Entered Mines 307 | -10/Mines | Build established: Mutant 368 | -10/Mines | Received a Rocket Launcher from a helpful Derelict 635 | -10/Mines | Assisted by bots powering up and referring to "LRC-V3" 676 | -10/Mines | Discovered new exit (range 5) 762 | -10/Mines | Deemed a non-threat by the Exiles lab entrance 762 | -10/Mines | Discovered new exit (range 5) 817 | -10/Mines | Met a Derelict shopkeep closing up shop 874 | -10/Mines | Discovered new exit (range 8) 1587 | -10/Mines | Entered Exiles 1587 | -10/Exiles | Found Exiles lab abandoned 1587 | -10/Exiles | Accompanied by 3 allies 1616 | -10/Exiles | Discovered new exit (range 15) 2264 | -10/Exiles | Discovered new exit (range 11) 2895 | -10/Exiles | Entered Mines 2895 | -9/Mines | Accompanied by 3 allies 2962 | -9/Mines | Met a Derelict bent on vengeance 3348 | -9/Mines | Found a hidden stash of uninstalled traps 3660 | -9/Mines | Discovered new exit (range 10) 3871 | -9/Mines | Discovered new exit (range 9) 4120 | -9/Mines | Entered Materials 4120 | -8/Materials | Accompanied by 3 allies 4120 | -8/Materials | Evolved 4 slots: Propulsion x2, Utility x2 4471 | -8/Materials | Lost 3 parts (1p1n1w) 4481 | -8/Materials | Garrison activated, responded to threat 4507 | -8/Materials | Destroyed 8 combat bots 4594 | -8/Materials | Repaired Sml. Storage Unit 4765 | -8/Materials | Core integrity fell below 50% 4842 | -8/Materials | Discovered new exit (range 15) 4859 | -8/Materials | Entered Factory 4859 | -7/Factory | Evolved 2 slots: Utility x2 4890 | -7/Factory | Lost 6 parts (1p4n1w) 5234 | -7/Factory | Lost 3 parts (1p1n1u) 5474 | -7/Factory | Sucked down chute 5474 | -7/Factory | Entered Waste 5475 | -7/Waste | Met a frightened Derelict 5489 | -7/Waste | EMP discharged 5531 | -7/Waste | Spotted C-40 Crusher 5548 | -7/Waste | Spotted C-40 Crusher 5552 | -7/Waste | Spotted C-40 Crusher 5559 | -7/Waste | Crushed by Compactor (1 part destroyed, 2 dropped) 5562 | -7/Waste | Crushed by Compactor (1 part destroyed, 2 dropped) 5563 | -7/Waste | Core integrity fell below 50% 5567 | -7/Waste | Crushed by Compactor (1 part destroyed, 1 dropped) 5568 | -7/Waste | Crushed by Compactor (1 part destroyed) 5570 | -7/Waste | Spotted C-40 Crusher 5589 | -7/Waste | EMP discharged 5589 | -7/Waste | System corruption reached 10% 5599 | -7/Waste | Lost 5 parts (1n2u2w) 5600 | -7/Waste | Discovered new exit (range 13) 5606 | -7/Waste | Entered Factory 5700 | -7/Factory | Identified exit to Garrison 5990 | -7/Factory | Core integrity fell below 20% 6005 | -7/Factory | Fabricated Enh. Optical Array? 6030 | -7/Factory | Destroyed by S-27 Virus with Autogun Last Messages --------------- Slammed into H-55 Commando. H-55 Commando knocked back. MCRQ&2C YAXX,EI1YR1NK: Penetrated by Slug. Antimatter Reactor destroyed. Critical hit (Burn: +37). Penetrated by Slug. Connecting with DSF Access... [Achievement: Just What I Needed] >> FABRICATOR: Completed Enh. Optical Array? Slug penetrates A-02 Transporter. A-02 Transporter destroyed. U-05 Engineer destroyed. K-01 Serf collects debris. R-06 Scavenger collects Lgt. Ion Engine. K-01 Serf collects debris. System corrupted: Component data lost. R-06 Scavenger collects Wheel. Penetrated by Slug. Arm. Huge Wheel destroyed. Map ----- +----------------------------------------------------+ | ?????????????????????????????????????????????????? | | ?????????????????????????????????????????????????? | | ?????????????????????????????????????????????????? | | ?????????????????????????????????????????????????? | | ?????????????????????????????????????????????????? | | ?????????????????????????????????????????????????? | | ?????????????????????????????????????????????????? | | ?????????????????????????????????????????????????? | | ?????????????????????????????????????????????????? | | ?????????????????????????????????????????????????? | | ?????????????????????????????????????????????????? | | ?????????????????????????????????????????????????? | | ?????????????????????????????????????????????????? | | ?????????????????????????????????????????????????? | | ??????????????????????????"?"""??????????????????? | | ?????????????????????????? ??????????????????? | | ???????????????????????? ???????????????????? | | ???????????????????????# !! ???????????????????? | | ???????????????????????# !!????????????????????? | | ???????????????????????# ????????????????????? | | ???????????????????????#""" ?? ??????????????????? | | ?????????????????#######"R ? ??????????????????? | | ?????????????????+ #?""" ???????????????????? | | ?????????????????# #? ?????????????????????? | | ??#########+###### ###/#######+#######????????? | | ??# t u@ k ???????? | | ??# ???????? | | ??# ???????? | | ??+ u g ???????? | | ??# wh g ???????? | | ??# =%########################+######+#????????? | | ??# !*##???????????????????????????????????????? | | ??# ]=T#???????????????????????????????????????? | | ### !=%]#???????????????????????????????????????? | | / ]=##???????????????????????????????????????? | | ### =##############???????????????????????????? | | #?# # #???????????????????????????? | | #?# # #???????????????????????????? | | #?# # #???????????????????????????? | | #?# #! #???????????????????????????? | | #?# # #???????????????????????????? | | #?# # "" "" #???????????????????????????? | | #?# + "" "" #???????????????????????????? | | #?# # """ """ #???????????????????????????? | | #?# # """ """ #???????????????????????????? | | ### # """ """ #???????????????????????????? | | ^ # #???????????????????????????? | | # #???????????????????????????? | | ^ ##############???????????????????????????? | | ^ #????????????????????????????????????????? | +----------------------------------------------------+ Best States ------------- Heat Dissipation 34 Energy Generation 21 Energy Capacity 325 Matter Stores 300 Matter Capacity 300 Sight Range 16 Robot Scan Range 15 Terrain Scan Range 14 Terrain Scan Density 310 Evasion (%) 55 Recoil Reduction 4 Defensive Hacking 10 Item Schematics ----------------- Ion Engine | -8/Materials | Scanalyzed Robot Schematics ------------------ None Fabricated ------------ Enh. Optical Array | x1 | -7/Factory | Preloaded Alien Tech Used ----------------- None Achievements -------------- Just What I Needed Remodeling Challenges ------------ None Game ------ Seed FlightGravitonShredder Manual? 0 Play Time 00:53:47 Cumulative 8.8 hours Start 2024.04.15 @ 21:14:28 End 2024.04.15 @ 22:11:34 Sessions 1 Manual Loads 0 Difficulty Rogue Special Mode None Game No. 15 Rogue 15 Adventurer 0 Explorer 0 Win Type - Total 0 Types 0/0/0/0/0/0/0/0/0 Lore% 19 Gallery% 16 Achievement% 14 Wizard Run 0 Options --------- Layout 1 ASCII 0 Keyboard 0 Movement Mouse Keybinds 0 Fullscreen 1 Font 24/Smallcaps Map View 50x35 Zoom Use 0% Tactical HUD 0 Map Filters NONE Filters NONE Steam 1 RUN: 22138e54-be75-4e23-8a6c-7ba0013ec9b4